bitfinex/quotes_ETHUSD_20240618
["timestamp","ask_amount","ask_price","bid_price","bid_amount"]
[1718676311236,2.93678,3405.1,3404.9,0.55]
[1718676311737,0.58728,3405.4,3404.9,0.55]
[1718676311943,2.93664,3405.3,3404.9,0.55]
[1718676312096,2.93672,3405.2,3404.9,0.55]
[1718676312999,2.9368,3405.1,3404.9,0.55]
[1718676313409,2.93704,3404.8,3404.0,2.93769]
[1718676313633,2.93691,3405.0,3404.2,2.93753]
[1718676313952,2.93691,3405.0,3404.3,0.55]
[1718676314134,2.93691,3405.0,3404.1,0.55]
[1718676314351,2.93706,3404.8,3404.1,3.48761]
[1718676314651,2.93691,3405.0,3404.2,0.68551]
[1718676314939,2.93691,3405.0,3404.3,0.55]
[1718676315153,2.93643,3405.5,3404.3,0.60874601]
[1718676315318,6.03109,3405.9,3404.3,0.55]
[1718676315652,6.03109,3405.9,3404.9,2.93693]
[1718676315653,2.93631,3405.7,3404.9,2.93693]
[1718676315956,0.58724,3405.7,3405.0,0.55]
[1718676316170,2.93609,3405.9,3405.0,0.55]
[1718676316309,2.93624,3405.8,3405.0,0.55]
[1718676316507,2.93624,3405.8,3405.0,3.48683]
[1718676316741,2.93624,3405.8,3405.0,0.55]
[1718676316941,2.93626,3405.7,3404.9,0.55]
[1718676317308,2.9364,3405.6,3404.9,0.55]
[1718676317514,2.93643,3405.5,3404.9,0.55]
[1718676317865,2.93643,3405.5,3404.8,0.55]
[1718676318025,2.93594,3406.1,3405.0,2.93684]
[1718676318226,2.93572,3406.4,3405.3,2.93657]
[1718676318444,2.93591,3406.1,3405.4,0.55]
[1718676318611,6.2,3406.5,3405.4,0.55]
[1718676318817,2.93608,3405.9,3405.4,0.55]
[1718676319130,2.93608,3405.9,3405.3,0.55]
[1718676319840,2.93638,3405.6,3405.3,0.55]
[1718676320149,2.93616,3405.9,3405.0,3.48683]
[1718676320350,0.6787138,3406.2,3405.0,0.55]
[1718676320573,3.47237138,3406.1,3404.2,3.36732]
[1718676320771,2.93649,3405.5,3404.6,2.93714]
[1718676320921,2.93661,3405.3,3404.4,2.93735]
[1718676321122,2.93661,3405.3,3404.2,0.4298]
[1718676321123,2.93685,3405.0,3404.3,2.93738]
[1718676321456,2.93679,3405.1,3404.4,2.93737]
[1718676321668,2.93661,3405.3,3403.9,2.93776]
[1718676321823,7.1002,3405.7,3403.7,0.29078053]
[1718676321824,6.03144,3405.5,3403.7,0.29078053]
[1718676322164,2.93703,3404.8,3404.0,2.93768]
[1718676322391,2.93703,3404.8,3404.1,3.05874636]
[1718676322518,2.9367,3405.2,3404.0,2.93768]
[1718676322519,2.93713,3404.7,3404.0,2.93768]
[1718676322729,2.93713,3404.7,3403.8,2.93787]
[1718676322730,2.93731,3404.5,3403.8,2.93787]
[1718676323058,2.93738,3404.4,3403.6,0.293808]
[1718676323266,2.93751,3404.3,3403.4,2.93823]
[1718676323567,2.93751,3404.3,3403.2,2.93832]
[1718676323568,2.93767,3404.1,3403.2,3.22842176]
[1718676323748,2.93751,3404.3,3403.2,3.22842176]
[1718676324220,2.9377,3404.1,3403.2,3.22842176]
[1718676325330,2.9377,3404.1,3403.4,2.93823]
[1718676325668,2.9377,3404.1,3403.5,0.55]
[1718676325669,2.93764,3404.1,3403.5,0.55]
[1718676325871,3.095,3405.2,3403.8,2.93788]
[1718676326034,2.93737,3404.4,3403.9,0.55]
[1718676326373,3.095,3404.8,3403.5,0.55]
[1718676326531,2.93772,3404.0,3403.3,2.93831]
[1718676326873,2.93772,3404.0,3403.4,0.55]
[1718676327544,2.93756,3404.2,3403.4,0.55]
[1718676327857,2.93716,3404.7,3403.8,2.93788]
[1718676328059,2.93716,3404.7,3403.9,3.84032741]
[1718676328272,2.93712,3404.7,3403.9,0.90253741]
[1718676328477,7.3633,3404.7,3403.9,0.05874941]
[1718676328782,7.3633,3404.7,3402.9,0.30008092]
[1718676328982,10.30044,3404.7,3402.9,2.93858]
[1718676329191,2.93695,3404.9,3404.2,2.93754]
[1718676329356,0.80071466,3405.2,3403.9,2.93776]
[1718676329545,2.93684,3405.1,3403.8,0.4298]
[1718676329745,2.93705,3404.8,3404.1,2.93761]
[1718676329941,2.93687,3405.0,3404.0,2.9377]
[1718676330145,2.93712,3404.7,3404.0,2.9377]
[1718676330379,2.93712,3404.7,3404.1,0.55]
[1718676330705,2.93738,3404.4,3404.1,0.55]
[1718676330981,2.93781,3403.9,3403.0,3.0]
[1718676331167,2.93781,3403.9,3403.1,2.93848]
[1718676331371,2.9379,3403.8,3403.2,3.0]
[1718676331546,2.9379,3403.8,3403.1,2.93848]
[1718676331741,2.93771,3404.1,3403.3,0.0330073]
[1718676331937,2.93771,3404.1,3403.2,0.887711]
[1718676331938,2.93824,3403.4,3403.2,0.03344567]
[1718676332139,2.93834,3403.3,3402.4,2.93909]
[1718676332985,2.93834,3403.3,3402.5,2.93901]
[1718676333365,2.93818,3403.5,3402.6,2.93892]
[1718676333661,2.93773,3404.0,3403.1,2.93848]
[1718676333969,2.9378,3403.9,3403.1,2.93848]
[1718676334155,2.93772,3404.0,3403.2,2.9384]
[1718676334352,2.93772,3404.0,3403.3,0.55]
[1718676334565,4.2781695,3404.6,3403.3,0.55]
[1718676334782,1.24422466,3404.3,3403.2,0.55]
[1718676335080,2.93787,3403.9,3403.2,3.4884]
[1718676335289,2.93787,3403.9,3403.2,0.55]
[1718676335581,2.93787,3403.9,3403.2,2.9384]
[1718676335800,0.88737712,3404.4,3403.5,2.93813]
[1718676335958,1.38815278,3404.4,3403.6,0.55]
[1718676336161,2.93769,3404.1,3403.4,2.93822]
[1718676336360,2.93769,3404.1,3403.5,0.55]
[1718676336967,2.93756,3404.2,3403.5,0.55]
[1718676337167,2.93748,3404.3,3403.5,3.48815]
[1718676337463,2.93756,3404.2,3402.9,3.0]
[1718676337663,2.93772,3404.0,3403.3,2.9383]
[1718676338196,2.93772,3404.0,3403.1,2.93842]
[1718676338197,2.93799,3403.7,3402.9,5.93866]
[1718676338374,2.93789,3403.9,3403.0,2.93857]
[1718676338900,2.93789,3403.8,3403.1,0.55]
[1718676339280,2.93764,3404.1,3403.4,2.93823]
[1718676339519,2.93764,3404.1,3403.5,0.55]
[1718676340169,2.93764,3404.1,3403.3,0.55]
[1718676340598,0.63756157,3404.3,3403.3,0.55]
[1718676340804,2.93786,3403.9,3403.1,3.48849]
[1718676341101,2.93798,3403.7,3403.2,0.03545731]
[1718676341599,2.93798,3403.7,3403.0,0.55]
[1718676341776,2.93816,3403.5,3403.3,0.03545731]
[1718676341981,2.93869,3402.9,3402.1,0.61420397]
[1718676342183,2.93889,3402.7,3402.1,0.61420397]
[1718676342370,2.93907,3402.5,3402.2,0.0355629]
[1718676342707,2.93902,3402.5,3402.2,0.0355629]
[1718676344301,2.93912,3402.4,3402.2,0.0355629]
[1718676344513,8.8174,3402.4,3402.2,0.0355629]
[1718676344663,2.93927,3402.2,3402.1,0.61420397]
[1718676345119,9.89155,3403.8,3402.1,0.61420397]
[1718676345271,2.93801,3403.7,3402.2,0.09482076]
[1718676345468,2.93841,3403.2,3402.3,3.34699447]
[1718676345667,2.93836,3403.3,3402.4,0.03614799]
[1718676345896,2.9386,3403.0,3402.4,0.03614799]
[1718676346101,2.93885,3402.7,3402.1,0.61420397]
[1718676346296,2.93877,3402.8,3402.2,0.58528953]
[1718676347185,0.587736,3402.8,3402.2,0.58528953]
[1718676347888,6.9143,3403.0,3402.3,0.55]
[1718676348085,1.63737712,3404.3,3402.6,2.93891]
[1718676348086,2.93817,3403.5,3402.6,2.93891]
[1718676348408,2.93817,3403.5,3402.7,0.55]
[1718676348409,2.93833,3403.3,3402.7,0.55]
[1718676348565,2.93833,3403.3,3402.6,0.55]
[1718676348773,2.93833,3403.3,3402.8,0.03523674]
[1718676348985,3.52598,3403.3,3402.6,0.55]
[1718676349185,0.58765,3403.3,3402.9,0.03523674]
[1718676349366,3.52598,3403.3,3402.6,0.55]
[1718676349601,2.93852,3403.1,3403.0,0.03523674]
[1718676349770,2.93852,3403.1,3402.5,0.55]
[1718676349975,3.095,3402.9,3401.7,2.93963]
[1718676350203,2.93882,3402.8,3402.6,0.03523674]
[1718676350402,0.955959,3403.1,3401.3,0.28961594]
[1718676350584,2.93808,3403.6,3400.9,0.4298]
[1718676350585,2.93807,3403.6,3401.7,0.4298]
[1718676350794,7.3171,3403.7,3402.7,2.93877]
[1718676350981,7.3171,3404.3,3403.4,2.93815]
[1718676351181,3.28,3404.4,3402.8,0.03518802]
[1718676351410,8.79974515,3404.9,3402.8,0.03518802]
[1718676351411,7.3171,3404.9,3404.1,2.93762]
[1718676351610,7.3171,3405.5,3404.4,2.93733]
[1718676351835,2.93662,3405.3,3404.4,2.93733]
[1718676351996,10.25357,3405.5,3404.5,3.52222664]
[1718676352187,7.3171,3405.5,3404.8,2.93701]
[1718676352382,6.20605,3406.0,3404.9,0.55]
[1718676352630,2.9363,3405.7,3404.9,0.58493228]
[1718676352930,2.9362,3405.8,3405.0,0.58457928]
[1718676353136,2.93672,3405.2,3405.0,0.03457928]
[1718676353288,2.93686,3405.0,3404.1,2.93759]
[1718676353596,2.93686,3405.0,3404.2,0.58457928]
[1718676353797,2.93657,3405.4,3404.5,2.93726]
[1718676354110,2.93639,3405.6,3404.6,3.52167627]
[1718676354317,2.93647,3405.5,3404.6,3.52167627]
[1718676354634,5.86567,3406.4,3405.2,2.93666]
[1718676354926,5.86567,3406.4,3405.3,3.48657]
[1718676354927,10.25295,3406.2,3405.3,3.48657]
[1718676355116,2.93,3406.4,3405.4,2.97096627]
[1718676355280,2.93559,3406.5,3405.5,0.60872509]
[1718676355487,3.27,3407.1,3405.6,0.03443732]
[1718676355821,3.27,3407.1,3406.3,2.93571]
[1718676356125,3.27,3407.1,3406.4,0.58340666]
[1718676356327,2.9353,3406.9,3405.8,2.93614]
[1718676356493,2.9353,3406.9,3406.5,0.55]
[1718676356946,0.327,3407.0,3406.6,0.03311073]
[1718676357222,2.93533,3406.8,3406.6,0.03311073]
[1718676357423,2.93545,3406.7,3406.5,0.55]
[1718676357634,2.93527,3406.9,3406.5,0.55]
[1718676358297,2.93527,3406.9,3406.6,0.03310668]
[1718676358497,2.93527,3406.9,3406.2,0.55]
[1718676358712,2.93527,3406.9,3406.3,0.03310668]
[1718676358897,2.93533,3406.8,3406.3,0.03310668]
[1718676359326,3.26219,3407.0,3406.2,0.55]
[1718676359498,2.93524,3406.9,3406.3,0.03303778]
[1718676359703,2.93585,3406.2,3405.9,0.55]
[1718676360009,6.20506,3407.1,3406.0,0.03303778]
[1718676360209,2.93515,3407.0,3406.1,2.93588]
[1718676360402,2.93489,3407.3,3406.2,0.05870708]
[1718676360751,1.1831695,3408.8,3406.4,2.93564]
[1718676360752,6.989,3408.6,3406.4,2.93564]
[1718676360963,2.93438,3407.9,3407.0,2.93505]
[1718676361269,2.93473,3407.5,3406.7,3.0]
[1718676361400,2.93385,3408.5,3407.1,3.51801778]
[1718676361401,2.93427,3408.0,3407.1,3.51801778]
[1718676361601,2.93427,3408.0,3407.1,0.55]
[1718676361602,2.93438,3407.9,3407.1,0.55]
[1718676361839,2.93438,3407.9,3407.2,0.03303778]
[1718676361840,2.93459,3407.7,3407.2,0.03303778]
[1718676362099,9.806,3408.6,3407.3,2.93482]
[1718676362100,2.9342,3408.1,3407.3,2.93482]
[1718676362300,2.9342,3408.1,3407.4,0.58303778]
[1718676362503,2.93383,3408.6,3407.5,0.05869034]
[1718676362701,7.166,3409.3,3407.7,2.93452]
[1718676362942,2.93347,3409.0,3407.9,2.93432]
[1718676363136,2.93351,3408.9,3407.9,2.93432]
[1718676363354,2.93386,3408.5,3408.0,0.58303778]
[1718676363665,2.93412,3408.2,3408.0,0.58303778]
[1718676363818,8.80237,3408.2,3408.0,0.03303778]
[1718676364016,2.9347,3407.6,3406.8,0.4298]
[1718676364206,2.93491,3407.3,3406.3,3.23513871]
[1718676364408,2.93491,3407.3,3406.1,3.36564]
[1718676364409,5.87013,3407.1,3406.9,0.03303778]
[1718676364604,2.93471,3407.5,3406.3,2.93568]
[1718676364841,2.93507,3407.1,3406.2,2.9358]
[1718676365044,2.93507,3407.1,3406.4,0.03184242]
[1718676365250,2.93507,3407.1,3406.3,2.93571]
[1718676365448,2.93507,3407.1,3406.5,0.03184242]
[1718676365449,0.586999,3407.1,3406.5,0.03184242]
[1718676365751,7.08563,3408.1,3404.3,2.93741]
[1718676365752,2.817,3406.8,3404.4,0.4298]
[1718676365949,6.9048,3406.5,3404.5,2.93727]
[1718676366148,6.9048,3406.5,3404.4,0.4298]
[1718676366149,2.93623,3405.8,3404.7,2.93709]
[1718676366331,2.93673,3405.2,3404.3,2.93742]
[1718676366508,2.93689,3405.0,3403.7,0.4298]
[1718676366703,2.9371,3404.8,3403.7,0.4298]
[1718676367014,3.682224,3405.7,3403.0,6.18532]
[1718676367015,2.93731,3404.5,3403.0,6.18532]
[1718676367211,2.9376,3404.2,3403.3,2.93827]
[1718676367408,2.93689,3405.0,3403.1,0.618532]
[1718676367647,2.93733,3404.5,3403.5,2.93809]
[1718676367842,9.9998,3405.2,3403.9,2.93772]
[1718676367843,9.84149,3405.2,3403.9,2.93772]
[1718676368160,2.93635,3405.6,3404.1,2.93762]
[1718676368445,3.095,3405.1,3403.0,3.2468]
[1718676368642,3.404224,3405.7,3403.0,3.2468]
[1718676368643,2.9369,3405.0,3403.0,3.2468]
[1718676368949,2.93705,3404.8,3403.2,2.93832]
[1718676369322,2.93714,3404.7,3403.8,2.93784]
[1718676369529,2.93732,3404.5,3403.1,0.64855851]
[1718676369716,2.93738,3404.4,3403.1,3.58699851]
[1718676369920,2.93779,3404.0,3403.1,0.64855851]
[1718676370205,2.93757,3404.2,3403.1,3.58699851]
[1718676370433,0.293714,3404.6,3402.4,0.4298]
[1718676370434,2.93775,3404.0,3402.4,0.4298]
[1718676370742,2.93775,3404.0,3403.0,2.93855]
[1718676371160,3.388714,3404.6,3403.6,2.93804]
[1718676371161,2.93724,3404.6,3403.6,2.93804]
[1718676371449,2.93757,3404.2,3403.4,2.93818]
[1718676371631,2.93778,3404.0,3402.7,2.93884]
[1718676371804,2.93767,3404.1,3403.5,0.0315715]
[1718676372012,2.93767,3404.1,3402.7,2.93884]
[1718676372013,2.93808,3403.6,3402.7,2.93884]
[1718676372344,2.93808,3403.6,3402.8,0.03299437]
[1718676372540,2.93795,3403.8,3402.8,0.03299437]
[1718676372743,10.02657,3404.1,3402.8,0.05876957]
[1718676372943,2.93776,3404.0,3403.1,2.93843]
[1718676373121,2.9372,3404.6,3403.3,2.93831]
[1718676373346,2.93791,3403.8,3403.4,0.03308365]
[1718676373544,2.93791,3403.8,3403.0,2.93856]
[1718676373800,7.0889,3404.7,3403.2,2.93834]
[1718676373933,1.002588,3404.6,3403.3,4.14390366]
[1718676374137,2.93748,3404.3,3403.5,2.93808]
[1718676374338,7.077554,3405.7,3403.6,3.57987251]
[1718676374339,2.93672,3405.2,3403.6,3.57987251]
[1718676374643,6.826,3405.3,3404.5,2.93723]
[1718676374862,6.826,3405.3,3404.6,0.58296596]
[1718676375344,7.802253,3405.3,3404.6,0.03296596]
[1718676375536,0.587224,3405.7,3403.8,2.93785]
[1718676375737,2.93688,3405.0,3404.0,2.93767]
[1718676376082,2.93642,3405.5,3404.3,2.93741]
[1718676376384,2.93755,3404.2,3403.3,0.59687479]
[1718676376529,2.93728,3404.5,3402.8,3.72956696]
[1718676376734,3.095,3404.8,3403.1,2.93843]
[1718676376995,10.5058,3404.7,3402.9,2.93863]
[1718676377277,2.93818,3403.5,3403.2,0.03295785]
[1718676377434,2.93805,3403.7,3402.7,2.93882]
[1718676377630,2.93805,3403.7,3402.8,3.618236]
[1718676377834,2.9376,3404.2,3402.8,3.618196]
[1718676378077,2.93782,3403.9,3403.1,2.93847]
[1718676378258,2.93782,3403.9,3402.8,3.52647]
[1718676378259,2.93793,3403.8,3402.8,3.52647]
[1718676378459,2.93778,3404.0,3403.0,2.93855]
[1718676378645,3.095,3404.3,3403.1,0.03288014]
[1718676378847,2.93831,3403.4,3402.8,0.58778]
[1718676379144,2.93831,3403.4,3402.9,0.03288014]
[1718676379145,2.93835,3403.3,3402.9,0.03288014]
[1718676379497,2.93821,3403.5,3403.0,0.03288014]
[1718676379674,2.93821,3403.5,3402.8,0.58778]
[1718676379863,2.93821,3403.5,3402.9,0.03288014]
[1718676380066,2.93821,3403.5,3402.9,0.55]
[1718676380437,2.93838,3403.3,3403.0,0.03288014]
[1718676380643,2.938,3403.7,3402.4,2.93908]
[1718676380644,2.93843,3403.2,3402.4,2.93908]
[1718676380861,2.93868,3402.9,3402.5,0.03288014]
[1718676381091,2.93851,3403.1,3402.2,2.93926]
[1718676381293,2.9386,3403.0,3402.3,0.03288014]
[1718676381500,3.095,3403.8,3402.4,0.59721401]
[1718676381501,2.93848,3403.2,3402.4,0.59721401]
[1718676381704,2.93833,3403.3,3402.4,0.65598867]
[1718676382017,2.93833,3403.3,3402.5,0.03288014]
[1718676382292,2.93842,3403.2,3402.5,0.58288014]
[1718676383194,2.93842,3403.2,3402.5,0.55]
[1718676383396,2.93842,3403.2,3402.6,0.4086294]
[1718676383603,2.93842,3403.2,3402.0,2.93944]
[1718676383604,2.9389,3402.7,3401.9,2.9395]
[1718676383892,6.03298,3403.7,3401.5,2.93981]
[1718676384098,2.93921,3402.3,3401.3,2.93997]
[1718676384311,6.03337,3403.3,3401.5,2.93983]
[1718676384312,2.93907,3402.5,3401.5,2.93983]
[1718676384457,2.93885,3402.7,3401.6,0.65264662]
[1718676384657,2.93885,3402.7,3401.9,2.93951]
[1718676384976,2.93823,3403.5,3402.2,2.93925]
[1718676385313,2.93823,3403.5,3402.1,2.93934]
[1718676385314,2.93851,3403.1,3402.1,2.93934]
[1718676385452,2.93838,3403.3,3401.2,2.94009]
[1718676385453,2.93838,3403.3,3402.3,0.05877539]
[1718676385657,2.93838,3403.3,3401.2,2.94009]
[1718676385658,2.93864,3403.0,3401.9,2.93946]
[1718676385971,2.93815,3403.5,3401.2,2.94009]
[1718676385972,2.93902,3402.5,3401.2,2.94009]
[1718676386300,2.93912,3402.4,3401.3,2.93997]
[1718676386498,2.93902,3402.5,3401.4,2.97254841]
[1718676386499,2.93922,3402.3,3401.4,2.97254841]
[1718676386659,2.93922,3402.3,3401.5,0.29725484]
[1718676387056,2.93902,3402.5,3401.6,0.03266841]
[1718676387258,1.1831695,3405.4,3400.3,0.116422]
[1718676387259,2.93963,3401.8,3400.7,2.9405]
[1718676387500,2.93981,3401.6,3400.8,0.03266841]
[1718676387701,2.93981,3401.6,3400.6,2.94064]
[1718676387908,2.94017,3401.2,3400.3,0.116422]
[1718676388057,2.94017,3401.2,3400.4,0.36804537]
[1718676388285,2.93981,3401.6,3400.5,2.94073]
[1718676388286,2.93979,3401.6,3400.5,2.94073]
[1718676388602,2.93997,3401.4,3400.4,3.27616696]
[1718676388788,2.93994,3401.5,3400.6,0.03266841]
[1718676388789,2.94007,3401.3,3400.6,0.03266841]
[1718676388989,2.94007,3401.3,3400.5,3.5740709]
[1718676389193,3.095,3401.7,3400.7,0.03266841]
[1718676389402,2.94052,3400.8,3400.3,0.116422]
[1718676389595,2.94034,3401.0,3400.3,0.116422]
[1718676389810,2.94027,3401.1,3400.4,0.03266841]
[1718676389811,2.94041,3400.9,3400.4,0.03266841]
[1718676390017,2.94041,3400.9,3400.3,0.116422]
[1718676390221,2.94065,3400.7,3400.5,0.03157946]
[1718676390430,2.94046,3400.9,3400.3,0.116422]
[1718676390729,2.94051,3400.8,3400.4,0.03157946]
[1718676390947,2.93977,3401.7,3400.4,0.03157946]
[1718676391224,2.94032,3401.0,3400.3,0.116422]
[1718676391432,2.93979,3401.6,3400.3,0.116422]
[1718676391628,2.93991,3401.5,3400.5,2.94069]
[1718676391947,2.93,3402.3,3400.3,0.116422]
[1718676391948,2.93891,3402.7,3400.7,0.4298]
[1718676392235,2.93897,3402.6,3401.6,2.93974]
[1718676392383,2.9388,3402.8,3401.7,0.843974]
[1718676392586,2.93904,3402.5,3401.7,0.55]
[1718676392809,2.93904,3402.5,3401.8,0.03230274]
[1718676393026,2.93946,3402.0,3401.8,0.03230274]
[1718676393196,2.93934,3402.2,3401.8,0.03230274]
[1718676393400,2.93934,3402.2,3401.7,0.55]
[1718676393401,2.93938,3402.1,3401.7,0.55]
[1718676393714,2.93938,3402.1,3401.8,0.03228242]
[1718676394031,2.93925,3402.3,3401.8,0.03228242]
[1718676394200,2.9389,3402.7,3401.8,3.03065913]
[1718676394403,2.93869,3402.9,3401.9,3.79251591]
[1718676394715,2.93869,3402.9,3402.0,2.97170618]
[1718676394911,2.93886,3402.7,3402.1,0.55]
[1718676395285,2.93886,3402.7,3402.2,0.03228618]
[1718676395491,2.93869,3402.9,3402.0,3.48941]
[1718676395685,2.93878,3402.8,3402.1,0.70549277]
[1718676395895,2.93878,3402.8,3402.2,0.55]
[1718676396129,2.93886,3402.7,3402.2,0.55]
[1718676396295,2.93913,3402.4,3402.3,0.03225951]
[1718676396495,2.93921,3402.3,3402.0,0.55]
[1718676396830,2.9393,3402.2,3401.2,2.94011]
[1718676397129,2.9393,3402.2,3401.3,5.94004]
[1718676397342,2.9393,3402.2,3401.4,2.93994]
[1718676397632,2.9393,3402.2,3401.5,3.59987333]
[1718676397807,2.9393,3402.2,3401.5,0.59987333]
[1718676398122,2.9393,3402.2,3401.4,2.93994]
[1718676398284,2.93897,3402.6,3401.5,0.05879327]
[1718676398490,3.095,3403.0,3401.8,2.93959]
[1718676398491,2.93876,3402.8,3401.8,2.93959]
[1718676398724,2.93874,3402.9,3402.1,2.93934]
[1718676398894,2.93874,3402.9,3402.2,0.55]
[1718676399398,2.9391,3402.4,3402.2,0.55]
[1718676399729,5.87822,3402.4,3402.2,0.55]
[1718676399903,2.93929,3402.2,3401.4,2.93995]
[1718676400101,2.93929,3402.2,3401.0,3.22940637]
[1718676400102,2.93929,3402.2,3401.5,0.55]
[1718676400426,2.93929,3402.2,3401.0,3.22940637]
[1718676400427,2.93999,3401.4,3400.6,2.94062]
[1718676400743,2.9398,3401.6,3400.7,0.05880506]
[1718676401088,2.9398,3401.6,3400.8,0.03102092]
[1718676401505,2.94022,3401.1,3400.8,0.03102092]
[1718676401827,2.93961,3401.9,3400.3,0.116422]
[1718676401828,2.94034,3401.0,3400.3,0.116422]
[1718676402126,2.93991,3401.5,3400.4,0.05881311]
[1718676402328,2.93998,3401.4,3400.6,2.94065]
[1718676402638,2.94039,3401.0,3400.5,0.03102092]
[1718676402786,2.94039,3401.0,3400.3,0.116422]
[1718676402991,2.9404,3400.9,3400.6,0.03102092]
[1718676403225,2.94049,3400.8,3400.3,0.116422]
[1718676403435,2.94049,3400.8,3400.7,0.03102092]
[1718676403592,2.94045,3400.9,3400.3,0.116422]
[1718676403933,2.94007,3401.3,3400.4,0.03102092]
[1718676404135,2.94014,3401.2,3400.4,2.94081]
[1718676404308,2.94007,3401.3,3400.5,0.55]
[1718676404501,2.94007,3401.3,3400.5,0.03102092]
[1718676404821,2.94033,3401.0,3400.5,0.03102092]
[1718676405344,2.94058,3400.7,3400.5,0.03102092]
[1718676405631,2.94025,3401.1,3400.5,0.03102092]
[1718676405963,2.94065,3400.6,3400.5,0.03102092]
[1718676406798,8.82195,3400.6,3400.5,0.03102092]
[1718676406997,5.88166,3400.4,3400.3,0.116422]
[1718676408542,8.82249,3400.4,3400.3,0.116422]
[1718676408721,8.82249,3400.4,3398.6,2.94234]
[1718676408722,2.94135,3399.8,3398.6,2.94234]
[1718676409055,0.294135,3399.7,3398.2,2.94266]
[1718676409347,0.294135,3399.7,3397.6,0.5462]
[1718676409348,6.03662,3399.5,3397.6,0.5462]
[1718676409495,2.94197,3399.1,3398.0,2.94286]
[1718676409691,2.94212,3399.0,3398.1,2.9428]
[1718676410200,2.94212,3399.0,3397.2,2.94352]
[1718676410201,3.095,3399.2,3397.4,2.94335]
[1718676410408,2.94181,3399.3,3397.0,0.662622]
[1718676410409,2.94275,3398.2,3397.3,2.94349]
[1718676410692,2.94263,3398.4,3397.4,0.05885879]
[1718676410895,2.94224,3398.8,3397.5,2.94332]
[1718676411138,2.94245,3398.6,3397.3,2.94348]
[1718676411306,2.94285,3398.1,3397.0,3.89854639]
[1718676411645,2.94277,3398.2,3397.1,3.33346464]
[1718676411803,2.94277,3398.2,3397.0,3.89854639]
[1718676411804,2.94357,3397.3,3397.0,0.116422]
[1718676412007,2.94312,3397.8,3397.0,0.116422]
[1718676412196,2.9428,3398.2,3397.0,0.116422]
[1718676412197,2.9423,3398.7,3397.1,0.0588715]
[1718676412397,3.554,3399.4,3397.1,0.0588715]
[1718676412398,2.94188,3399.2,3397.7,2.94313]
[1718676412617,2.94206,3399.0,3397.8,0.3531592]
[1718676412904,2.94179,3399.3,3398.4,2.94254]
[1718676413099,2.94188,3399.2,3398.2,2.94266]
[1718676413433,0.294135,3399.7,3398.3,0.55]
[1718676413595,7.3039,3400.5,3398.8,2.9422]
[1718676413596,2.94137,3399.8,3398.8,2.9422]
[1718676413800,2.94137,3399.8,3398.9,0.55]
[1718676413996,2.94137,3399.8,3398.9,0.95806409]
[1718676414571,2.94145,3399.7,3398.9,0.899231]
[1718676414697,2.94141,3399.8,3398.9,3.841311]
[1718676414894,2.94204,3399.0,3398.9,0.55]
[1718676415246,5.88402,3399.1,3398.9,0.55]
[1718676415945,2.9409,3400.4,3398.9,0.55]
[1718676416100,2.94169,3399.4,3398.9,0.55]
[1718676416301,2.94169,3399.4,3398.6,0.55]
[1718676416524,2.94137,3399.8,3399.0,0.02836327]
[1718676416704,3.529632,3399.8,3398.5,0.05884139]
[1718676416925,2.94122,3400.0,3398.6,0.05883683]
[1718676417125,2.94123,3400.0,3399.1,2.94192]
[1718676417337,2.94107,3400.2,3399.3,2.94176]
[1718676417533,2.94087,3400.4,3399.5,2.94158]
[1718676417825,2.94047,3400.9,3399.6,0.55]
[1718676417826,2.94076,3400.5,3399.6,0.55]
[1718676418024,2.94059,3400.7,3399.8,2.94133]
[1718676418349,2.94059,3400.7,3399.9,0.55]
[1718676418553,2.94046,3400.9,3399.9,0.55]
[1718676418757,2.94059,3400.7,3400.0,0.02825346]
[1718676418959,2.94067,3400.6,3400.0,0.02825346]
[1718676419728,2.94076,3400.5,3400.0,0.02825346]
[1718676420256,2.94068,3400.6,3400.0,0.02825346]
[1718676420616,2.94084,3400.4,3400.0,0.02825346]
[1718676420817,2.94104,3400.2,3400.0,0.02825346]
[1718676421128,2.94104,3400.2,3399.7,0.55]
[1718676421129,2.94101,3400.2,3399.7,0.55]
[1718676421344,2.94096,3400.3,3399.7,0.55]
[1718676421675,7.0844,3401.1,3399.8,0.08681422]
[1718676421857,7.487,3401.7,3400.2,2.94095]
[1718676422020,2.93954,3401.9,3400.3,3.90289475]
[1718676422227,7.487,3402.3,3400.5,2.94073]
[1718676422459,2.9387,3402.9,3400.6,0.60880282]
[1718676422460,2.93946,3402.0,3400.6,0.60880282]
[1718676422659,2.93998,3401.4,3400.6,3.57760706]
[1718676422867,2.93989,3401.5,3400.7,2.94052]
[1718676423034,3.527842,3401.5,3400.8,0.55]
[1718676423364,3.527842,3401.5,3400.6,0.55]
[1718676423365,2.94033,3401.0,3400.6,0.55]
[1718676423590,0.587952,3401.5,3400.6,0.55]
[1718676423869,0.587952,3401.5,3400.7,0.02721699]
[1718676423870,2.94015,3401.2,3400.7,0.02721699]
[1718676424030,3.095,3402.2,3400.7,0.02721699]
[1718676424241,2.93972,3401.7,3400.7,0.02721699]
[1718676424567,0.9869,3402.1,3400.7,0.02721699]
[1718676424568,2.94043,3400.9,3400.7,0.02721699]
[1718676424859,2.94043,3400.9,3399.9,3.48743]
[1718676424860,2.94043,3400.9,3400.0,2.94115]
[1718676425171,2.94043,3400.9,3400.1,0.0273023]
[1718676425461,2.94095,3400.3,3400.1,0.0273023]
[1718676425689,0.294095,3400.2,3400.1,0.0273023]